Workbook

Sheet Feuil1
A2: Tarif social - Calcul du coût de la consommation annuelle
A4: Tarifs TVAC d'application du 1er octobre au 31 décembre 2023
A6: Choisissez votre type de compteur: | J6: Compteur simple - monohoraire | K6: 1
J7: Compteur bihoraire | K7: 2
J8: Compteur simple + exclusif nuit | K8: 3
J9: Compteur bihoraire + exclusif nuit | K9: 4
A12: =IF(J11<>0,"Introduisez vos consommations annuelles:","") -> 
A14: =IF(OR(J11=1,J11=3),"Consommation annuelle:","") ->  | E14: =IF(OR(J11=1,J11=3)," kWh","") -> 
A15: =IF(OR(J11=2,J11=4),"Consommation heures pleines (jours de la semaine):","") ->  | E15: =IF(OR(J11=2,J11=4)," kWh","") -> 
A16: =IF(OR(J11=2,J11=4),"Consommation heures creuses (nuits et week-ends):","") ->  | E16: =IF(OR(J11=2,J11=4)," kWh","") -> 
A17: =IF(OR(J11=3,J11=4),"Consommation en ''exclusif nuit'' :","") ->  | E17: =IF(OR(J11=3,J11=4)," kWh","") -> 
A20: =IF(J11=1,"Montant annuel de la facture:","") ->  | C20: =IF(J11=1,C14*'Tarifs et Surcharges'!C19,"") ->  | E20: =IF(J11=1,"€","") -> 
A21: =IF(J11=2,"Montant annuel de la facture:","") ->  | C21: =IF(J11=2,C15*'Tarifs et Surcharges'!C23+C16*'Tarifs et Surcharges'!C25,"") ->  | E21: =IF(J11=2,"€","") -> 
A22: =IF(J11=3,"Montant annuel de la facture:","") ->  | C22: =IF(J11=3,C14*'Tarifs et Surcharges'!C19+C17*'Tarifs et Surcharges'!C29,"") ->  | E22: =IF(J11=3,"€","") -> 
A23: =IF(J11=4,"Montant annuel de la facture:","") ->  | C23: =IF(J11=4,C15*'Tarifs et Surcharges'!C23+Feuil1!C16*'Tarifs et Surcharges'!C25+Feuil1!C17*'Tarifs et Surcharges'!C29,"") ->  | E23: =IF(J11=4,"€","") -> 

Sheet Tarifs et Surcharges
A1: Cotisations fédérales et surcharges
B2: c€/kWh | C2: €/kWh | D2: Tarif d'application du | F2: 2023-01-01 | G2: au | H2: 2023-03-31
A3: Cotisation fédérale: redevance CREG | B3: 0 | C3: =B3/100 -> 0
A4: Cotisation sur l'énergie | B4: 0 | C4: =B4/100 -> 0 | E4: Taux de TVA à appliquer
A5: Cotis. Féd.: passif dénucléarisation | B5: 0 | C5: =B5/100 -> 0
A6: Cotis. Féd.: passif fonds KYOTO | B6: 0 | C6: 0
A7: Cotis. Féd.: Surcharge.aide sociale (OSP) | B7: 0 | C7: 0
A8: Cotis. Féd.: surcharge clients protégés | B8: 0 | C8: 0
A9: Surcharge "Chauffage" | B9: 0 | C9: 0
A10: Redevance de raccordement | B10: 0.075 | C10: 0.00075
A11: Coût certificats verts Offshore | B11: 0 | C11: 0
A13: Total | B13: =SUM(B3:B12) -> 0.075 | C13: =SUM(C3:C12) -> 0.00075 | F13: à remplir !! | H13: HTVA
A15: Tarifs | B15: TVAC | C15: 0.06 | F15: Tarifs | G15: c€/kWh | H15: €/kWh
A17: Tarif normal | F17: Tarif normal
A18: - monohoraire | B18: =C18*100 -> 21.568 | C18: 0.21568 | F18: - monohoraire | G18: 28.579 | H18: =G18/100 -> 0.28579
A19: + cot fed & surch | B19: =B18+B13 -> 21.643 | C19: =C18+C13 -> 0.21643
A21: Tarif bihoraire | F21: Tarif bihoraire
A22: - jour | B22: =C22*100 -> 21.878 | C22: 0.21878 | F22: - jour | G22: 29.515 | H22: =G22/100 -> 0.29515
A23: + cot fed & surch | B23: =B22+B13 -> 21.953 | C23: =C22+C13 -> 0.21953
A24: - nuit | B24: =C24*100 -> 21.248 | C24: 0.21248 | F24: - nuit | G24: 23.865 | H24: =G24/100 -> 0.23865
A25: + cot fed & surch | B25: =B24+B13 -> 21.323 | C25: =C24+C13 -> 0.21323
A27: Tarif exclusif nuit | F27: Tarif exclusif nuit
A28: - excl nuit | B28: =C28*100 -> 20.265 | C28: 0.20265 | F28: - excl nuit | G28: 17.397 | H28: =G28/100 -> 0.17397
A29: + cot fed & surch | B29: =B28+B13 -> 20.34 | C29: =C28+C13 -> 0.2034

Sheet Prod
A2: 1 | B2: Compteur normal - monohoraire
A3: 2 | B3: Compteur bihoraire
A4: 3 | B4: Compteur simple + exclusif nuit
A5: 4 | B5: Compteur bihoraire + exclusif nuit
